fUSD/lending_fUSD_20240214
["ID","MTS","AMOUNT","RATE_DAILY","PERIOD"]
[314044348,1707945082238,-171.40887038,0.00038489,120]
[314044349,1707945082248,-13085.890879,0.00038489,2]
[314044350,1707945082259,-526.33973878,0.00038489,3]
[314044351,1707945082268,-1834.2795445,0.00038489,2]
[314044352,1707945082278,-309.999999,0.00038489,2]
[314044353,1707945082287,-15193.53519724,0.00038489,2]
[314044354,1707945082296,-167.94872156,0.00038489,2]
[314044355,1707945082305,-248.02594769,0.00038489,15]
[314044356,1707945082314,-994.19293662,0.00038489,120]
[314044357,1707945082323,-411.9541468,0.00038489,2]
[314044358,1707945082333,-3041.79108857,0.00038489,2]
[314044359,1707945082342,-154.999999,0.00038489,2]
[314044360,1707945082351,-310.8357192,0.00038489,30]
[314044361,1707945082361,-35432.2098575,0.00038489,2]
[314044362,1707945082370,-154.999999,0.00038489,120]
[314044363,1707945082380,-154.999999,0.00038489,120]
[314044364,1707945082389,-156.93056867,0.00038489,120]
[314044365,1707945082399,-162.89568986,0.00038489,10]
[314044366,1707945082408,-5516.5602338,0.00038489,30]
[314044367,1707945082417,-169857.84606226,0.00038489,7]
[314044368,1707945082426,-660.9443603,0.00038489,2]
[314044369,1707945082435,-2104.23169801,0.00038489,2]
[314044370,1707945082444,-32793.85387092,0.00038489,10]
[314044371,1707945082454,-3725.51382516,0.00038489,120]
[314044372,1707945082462,-1166.37983354,0.00038489,120]
[314044373,1707945082471,-174.78517874,0.00038489,30]
[314044374,1707945082480,-1651.84074318,0.00038489,14]
[314044375,1707945082489,-1678.90429713,0.00038489,2]
[314044376,1707945082498,-459.42571194,0.00038489,120]
[314044377,1707945082508,-207.46672735,0.00038489,31]
[314044378,1707945082517,-1775.064593,0.00038489,30]
[314044379,1707945082527,-500.0,0.00038489,6]
[314044380,1707945082535,-500.0,0.00038489,7]
[314044381,1707945082546,-500.0,0.00038489,4]
[314044382,1707945082556,-500.0,0.00038489,3]
[314044383,1707945082565,-299.36350486,0.00038489,2]
[314044384,1707945082575,-772.07823317,0.00038489,2]
[314044385,1707945082584,-194897.11648567,0.00038489,2]
[314044386,1707945082594,-1923.0,0.00038494,20]
[314044387,1707945082604,-396.0,0.00038494,20]
[314044388,1707945082613,-947.15,0.000385,7]
[314044389,1707945082626,-200.0,0.000385,13]
[314044390,1707945082637,-151.02152,0.00038548,20]
[314044391,1707945082647,-500.0,0.00038552,2]
[314044392,1707945082657,-166.38,0.00038554,2]
[314044393,1707945082666,-153.54697604,0.00038566,2]
[314044394,1707945082676,-231.28207377,0.00038591,2]
[314044395,1707945082685,-150.0,0.00038591,2]
[314044396,1707945082695,-192.0,0.00038597,2]
[314044397,1707945082705,-1000.0,0.000386,7]
[314044398,1707945082715,-257.0,0.000386,7]
[314044399,1707945082725,-347.36,0.00038621,2]
[314044400,1707945082734,-556.75,0.0003863,7]
[314044401,1707945082744,-586.75,0.0003863,7]
[314044402,1707945082754,-799.09,0.0003863,7]
[314044403,1707945082763,-500.0,0.0003863,7]
[314044404,1707945082773,-899.57,0.0003863,7]
[314044405,1707945082782,-2544.37,0.0003863,7]
[314044406,1707945082791,-647.67,0.0003863,7]
[314044407,1707945082800,-500.0,0.0003863,7]
[314044408,1707945082809,-558.18,0.0003863,7]
[314044409,1707945082818,-694.58,0.0003863,7]
[314044410,1707945082828,-1144.53,0.0003863,7]
[314044411,1707945082837,-500.0,0.0003863,7]
[314044412,1707945082847,-500.0,0.0003863,7]
[314044413,1707945082856,-500.0,0.0003863,7]
[314044414,1707945082867,-500.0,0.0003863,7]
[314044415,1707945082878,-500.0,0.0003863,7]
[314044416,1707945082887,-3424.69,0.0003863,7]
[314044417,1707945082897,-818.43,0.0003863,7]
[314044418,1707945082908,-5392.04,0.0003863,7]
[314044419,1707945082918,-503.92,0.0003863,7]
[314044420,1707945082929,-906.19,0.0003863,7]
[314044421,1707945082940,-549.23,0.0003863,7]
[314044422,1707945082956,-500.0,0.0003863,7]
[314044423,1707945082967,-500.0,0.0003863,7]
[314044424,1707945082978,-822.06,0.0003863,7]
[314044425,1707945082988,-500.0,0.0003863,7]
[314044426,1707945082999,-500.0,0.0003863,7]
[314044427,1707945083009,-3341.45,0.0003863,7]
[314044428,1707945083019,-677.12,0.0003863,7]
[314044429,1707945083030,-500.0,0.0003863,7]
[314044430,1707945083040,-1761.82,0.0003863,7]
[314044431,1707945083051,-609.74,0.0003863,7]
[314044432,1707945083061,-802.92,0.0003863,7]
[314044433,1707945083071,-500.0,0.0003863,7]
[314044434,1707945083080,-500.0,0.0003863,7]
[314044435,1707945083090,-13582.07,0.0003863,7]
[314044436,1707945083100,-500.0,0.0003863,7]
[314044437,1707945083111,-500.0,0.0003863,7]
[314044438,1707945083124,-953.89,0.0003863,7]
[314044439,1707945083134,-500.0,0.0003863,7]
[314044440,1707945083146,-6234.22,0.0003863,7]
[314044441,1707945083156,-586.78,0.0003863,7]
[314044442,1707945083165,-500.0,0.0003863,7]
[314044443,1707945083176,-1606.08,0.0003863,7]
[314044444,1707945083186,-500.0,0.0003863,7]
[314044445,1707945083196,-595.12,0.0003863,7]
[314044446,1707945083205,-500.0,0.0003863,7]
[314044447,1707945083215,-1047.58,0.0003863,7]
[314044448,1707945083225,-681.83,0.0003863,7]
[314044449,1707945083235,-515.63,0.0003863,7]
[314044450,1707945083245,-500.0,0.0003863,7]
[314044451,1707945083257,-1810.87,0.0003863,7]
[314044452,1707945083266,-805.31,0.0003863,7]
[314044453,1707945083276,-603.11,0.0003863,7]
[314044454,1707945083286,-500.0,0.0003863,7]
[314044455,1707945083295,-500.0,0.0003863,7]
[314044456,1707945083305,-513.07,0.0003863,7]
[314044457,1707945083314,-500.0,0.0003863,7]
[314044458,1707945083323,-500.0,0.0003863,7]
[314044459,1707945083332,-780.8,0.0003863,7]
[314044460,1707945083342,-841.02,0.0003863,7]
[314044461,1707945083351,-662.19,0.0003863,7]
[314044462,1707945083361,-1486.64,0.0003863,7]
[314044463,1707945083371,-2858.66,0.0003863,7]
[314044464,1707945083380,-500.0,0.0003863,7]
[314044465,1707945083390,-2047.91,0.0003863,7]
[314044466,1707945083400,-590.33,0.0003863,7]
[314044467,1707945083410,-786.93,0.0003863,7]
[314044468,1707945083419,-577.68,0.0003863,7]
[314044469,1707945083428,-1000.0,0.0003863,120]
[314044470,1707945083437,-3628.12,0.0003863,7]
[314044471,1707945083446,-4757.12,0.0003863,7]
[314044472,1707945083455,-1991.03,0.0003863,7]
[314044473,1707945083464,-598.4,0.0003863,7]
[314044474,1707945083473,-612.33,0.0003863,2]
[314044475,1707945083482,-500.0,0.0003863,7]
[314044476,1707945083491,-500.0,0.0003863,7]
[314044477,1707945083500,-617.82,0.0003863,7]
[314044478,1707945083509,-502.43,0.0003863,7]
[314044479,1707945083517,-2139.36,0.0003863,7]
[314044480,1707945083526,-807.41,0.0003863,7]
[314044481,1707945083535,-685.44,0.0003863,7]
[314044482,1707945083544,-500.0,0.0003863,7]
[314044483,1707945083553,-500.0,0.0003863,7]
[314044484,1707945083562,-730.2,0.0003863,7]
[314044485,1707945083571,-2211.07,0.0003863,7]
[314044486,1707945083580,-500.0,0.0003863,7]
[314044487,1707945083589,-711.33,0.0003863,7]
[314044488,1707945083598,-743.99,0.0003863,7]
[314044489,1707945083608,-2294.91,0.0003863,7]
[314044490,1707945083618,-2043.37,0.0003863,7]
[314044491,1707945083627,-500.0,0.0003863,7]
[314044492,1707945083636,-594.55,0.0003863,7]
[314044493,1707945083646,-6637.56,0.0003863,7]
[314044494,1707945083655,-204.52852301,0.0003863,7]
[314044495,1707945083664,-500.0,0.0003863,7]
[314044496,1707945083788,-500.0,0.0003863,7]
[314044497,1707945083799,-1343.45,0.0003863,7]
[314044498,1707945083809,-1215.55,0.0003863,7]
[314044499,1707945083818,-595.97,0.0003863,7]
[314044500,1707945083827,-500.0,0.0003863,7]
[314044501,1707945083836,-1831.02,0.0003863,7]
[314044502,1707945083846,-1575.34,0.0003863,7]
[314044503,1707945083855,-1240.3,0.0003863,7]
[314044504,1707945083864,-1949.84,0.0003863,7]
[314044505,1707945083874,-500.0,0.0003863,7]
[314044506,1707945083883,-500.0,0.0003863,7]
[314044507,1707945083892,-1376.91,0.0003863,7]
[314044508,1707945083901,-1838.93,0.0003863,7]
[314044509,1707945083910,-1020.07,0.0003863,7]
[314044510,1707945083919,-500.0,0.0003863,7]
[314044511,1707945083928,-272.88563894,0.0003863,7]
[314044512,1707945083937,-500.0,0.0003863,7]
[314044513,1707945083947,-1264.88,0.0003863,7]
[314044514,1707945083959,-4521.24,0.0003863,7]
[314044515,1707945083968,-4808.1,0.0003863,7]
[314044516,1707945083977,-791.66,0.0003863,7]
[314044517,1707945083986,-500.0,0.0003863,7]
[314044518,1707945083996,-641.04,0.0003863,7]
[314044519,1707945084005,-1751.89,0.0003863,7]
[314044520,1707945084014,-660.03,0.0003863,7]
[314044521,1707945084023,-500.0,0.0003863,7]
[314044522,1707945084034,-665.94,0.0003863,7]
[314044523,1707945084044,-1411.1,0.0003863,7]
[314044524,1707945084053,-720.52,0.0003863,7]
[314044525,1707945084062,-1028.68,0.0003863,7]
[314044526,1707945084071,-1101.95,0.0003863,7]
[314044527,1707945084080,-633.08,0.0003863,7]
[314044528,1707945084088,-679.4,0.0003863,7]
[314044529,1707945084098,-1588.43,0.0003863,7]
[314044530,1707945084107,-859.31,0.0003863,7]
[314044531,1707945084117,-570.05,0.0003863,7]
[314044532,1707945084127,-2455.03,0.0003863,7]
[314044533,1707945084137,-579.79,0.0003863,7]
[314044534,1707945084146,-320.57,0.0003863,7]
[314044535,1707945084156,-500.0,0.0003863,7]
[314044536,1707945084166,-6828.37,0.0003863,7]
[314044537,1707945084177,-7718.39,0.0003863,7]
[314044538,1707945084188,-500.0,0.0003863,7]
[314044539,1707945084198,-500.0,0.0003863,7]
[314044540,1707945084209,-500.0,0.0003863,7]
[314044541,1707945084219,-500.0,0.0003863,7]
[314044542,1707945084228,-730.4,0.0003863,7]
[314044543,1707945084237,-1547.02,0.0003863,7]
[314044544,1707945084248,-1211.6,0.0003863,7]
[314044545,1707945084259,-592.22,0.0003863,7]
[314044546,1707945084268,-1187.29,0.0003863,7]
[314044547,1707945084278,-500.0,0.0003863,7]
[314044548,1707945084287,-6862.69,0.0003863,7]
[314044549,1707945084297,-1752.35,0.0003863,7]
[314044550,1707945084306,-500.0,0.0003863,7]
[314044551,1707945084315,-551.53,0.0003863,7]
[314044552,1707945084325,-565.71,0.0003863,7]
[314044553,1707945084334,-500.0,0.0003863,7]
[314044554,1707945084343,-828.25,0.0003863,7]
[314044555,1707945084353,-500.0,0.0003863,7]
[314044556,1707945084362,-500.0,0.0003863,7]
[314044557,1707945084373,-865.42,0.0003863,7]
[314044558,1707945084382,-1003.79,0.0003863,7]
[314044559,1707945084392,-5366.99,0.0003863,7]
[314044560,1707945084401,-1623.54,0.0003863,7]
[314044561,1707945084411,-1200.22,0.0003863,7]
[314044562,1707945084420,-558.49,0.0003863,7]
[314044563,1707945084429,-500.0,0.0003863,7]
[314044564,1707945084439,-1014.56,0.0003863,7]
[314044565,1707945084447,-995.34,0.0003863,7]
[314044566,1707945084457,-746.35,0.0003863,7]
[314044567,1707945084466,-501.11,0.0003863,7]
[314044568,1707945084475,-1044.44,0.0003863,7]
[314044569,1707945084484,-1716.87,0.0003863,7]
[314044570,1707945084493,-1848.23,0.0003863,7]
[314044571,1707945084503,-1168.36,0.0003863,7]
[314044572,1707945084512,-587.47,0.0003863,7]
[314044573,1707945084521,-2233.44,0.0003863,7]
[314044574,1707945084530,-500.0,0.0003863,7]
[314044575,1707945084539,-983.47,0.0003863,7]
[314044576,1707945084548,-580.91,0.0003863,7]
[314044577,1707945084557,-826.29,0.0003863,7]
[314044578,1707945084567,-193.54,0.0003863,7]
[314044579,1707945084576,-972.52,0.0003863,7]
[314044580,1707945084585,-898.19,0.0003863,7]
[314044581,1707945084594,-500.0,0.0003863,7]
[314044582,1707945084603,-500.0,0.0003863,7]
[314044583,1707945084612,-2032.9,0.0003863,7]
[314044584,1707945084622,-7693.98,0.0003863,7]
[314044585,1707945084632,-500.0,0.0003863,7]
[314044586,1707945084648,-500.0,0.0003863,7]
[314044587,1707945084668,-647.49,0.0003863,7]
[314044588,1707945084686,-551.52,0.0003863,7]
[314044589,1707945084706,-778.33,0.0003863,7]
[314044590,1707945084722,-500.0,0.0003863,7]
[314044591,1707945084739,-500.0,0.0003863,7]
[314044592,1707945084756,-3552.29,0.0003863,7]
[314044593,1707945084772,-630.27,0.0003863,7]
[314044594,1707945084791,-3310.79,0.0003863,7]
[314044595,1707945084806,-569.11,0.0003863,7]
[314044596,1707945084824,-500.0,0.0003863,7]
[314044597,1707945084844,-500.0,0.0003863,7]
[314044598,1707945084858,-1313.58,0.0003863,7]
[314044599,1707945084873,-500.0,0.0003863,7]
[314044600,1707945084889,-852.0,0.0003864,2]
[314044601,1707945084903,-333.02152,0.00038648,20]
[314044602,1707945084918,-500.0,0.00038699,2]
[314044603,1707945084933,-155.0,0.00038727,2]
[314044604,1707945084950,-151.021419,0.00038748,19]
[314044605,1707945084965,-333.02152,0.00038748,20]
[314044606,1707945084979,-21005.39927813,0.000388,4]
[314044607,1707945084995,-347.36,0.00038814,2]
[314044608,1707945085010,-150.0,0.00038822,2]
[314044609,1707945085024,-500.0,0.00038845,2]
[314044610,1707945085039,-151.02152,0.00038848,20]
[314044611,1707945085054,-651.282159,0.0003887,2]
[314044612,1707945085068,-816.874501,0.0003887,2]
[314044613,1707945085081,-677.786138,0.0003887,2]
[314044614,1707945085096,-2281.099806,0.0003887,2]
[314044615,1707945085109,-285.499401,0.0003887,2]
[314044616,1707945085124,-2281.099807,0.0003887,2]
[314044617,1707945085139,-285.499402,0.0003887,2]
[314044618,1707945085153,-2281.099806,0.0003887,2]
[314044619,1707945085167,-285.499401,0.0003887,2]
[314044620,1707945085182,-2281.099806,0.0003887,2]
[314044621,1707945085196,-285.499401,0.0003887,2]
[314044622,1707945085210,-1923.0,0.00038887,20]
[314044623,1707945085224,-396.0,0.00038887,20]
[314044624,1707945085238,-2348.35,0.000389,7]
[314044625,1707945085253,-2404.89,0.000389,7]
[314044626,1707945085267,-1000.0,0.000389,2]
[314044627,1707945085281,-556.75,0.00038904,7]
[314044628,1707945085296,-586.75,0.00038904,7]
[314044629,1707945085310,-799.09,0.00038904,7]
[314044630,1707945085325,-500.0,0.00038904,7]
[314044631,1707945085339,-899.57,0.00038904,7]
[314044632,1707945085354,-2544.37,0.00038904,7]
[314044633,1707945085369,-647.67,0.00038904,7]
[314044634,1707945085385,-500.0,0.00038904,7]
[314044635,1707945085399,-558.18,0.00038904,7]
[314044636,1707945085413,-694.58,0.00038904,7]
[314044637,1707945085427,-1144.53,0.00038904,7]
[314044638,1707945085441,-500.0,0.00038904,7]
[314044639,1707945085456,-500.0,0.00038904,7]
[314044640,1707945085474,-500.0,0.00038904,7]
[314044641,1707945085487,-500.0,0.00038904,7]
[314044642,1707945085501,-3424.69,0.00038904,7]
[314044643,1707945085514,-818.43,0.00038904,7]
[314044644,1707945085529,-5392.04,0.00038904,7]
[314044645,1707945085543,-500.0,0.00038904,7]
[314044646,1707945085558,-503.92,0.00038904,7]
[314044647,1707945085572,-906.19,0.00038904,7]
[314044648,1707945085586,-549.23,0.00038904,7]
[314044649,1707945085601,-500.0,0.00038904,7]
[314044650,1707945085615,-500.0,0.00038904,7]
[314044651,1707945085629,-822.06,0.00038904,7]
[314044652,1707945085644,-238.3453559,0.00038904,7]
[314044653,1707945085658,-500.0,0.00038904,7]
[314044654,1707945085672,-3341.45,0.00038904,7]
[314044655,1707945085686,-677.12,0.00038904,7]
[314044656,1707945085701,-500.0,0.00038904,7]
[314044657,1707945085714,-1761.82,0.00038904,7]
[314044658,1707945085728,-609.74,0.00038904,7]
[314044659,1707945085743,-802.92,0.00038904,7]
[314044660,1707945085757,-500.0,0.00038904,7]
[314044661,1707945085771,-500.0,0.00038904,7]
[314044662,1707945085786,-13582.07,0.00038904,7]
[314044663,1707945085799,-500.0,0.00038904,7]
[314044664,1707945085814,-500.0,0.00038904,7]
[314044665,1707945085828,-953.89,0.00038904,7]
[314044666,1707945085843,-500.0,0.00038904,7]
[314044667,1707945085857,-6234.22,0.00038904,7]
[314044668,1707945085871,-586.78,0.00038904,7]
[314044669,1707945085886,-500.0,0.00038904,7]
[314044670,1707945085901,-1606.08,0.00038904,7]
[314044671,1707945085915,-500.0,0.00038904,7]
[314044672,1707945085930,-595.12,0.00038904,7]
[314044673,1707945085945,-500.0,0.00038904,7]
[314044674,1707945085961,-1047.58,0.00038904,7]
[314044675,1707945085976,-681.83,0.00038904,7]
[314044676,1707945086163,-515.63,0.00038904,7]
[314044677,1707945086172,-500.0,0.00038904,7]
[314044678,1707945086182,-1810.87,0.00038904,7]
[314044679,1707945086191,-805.31,0.00038904,7]
[314044680,1707945086201,-603.11,0.00038904,7]
[314044681,1707945086210,-500.0,0.00038904,7]
[314044682,1707945086219,-500.0,0.00038904,7]
[314044683,1707945086229,-513.07,0.00038904,7]
[314044684,1707945086238,-500.0,0.00038904,7]
[314044685,1707945086248,-500.0,0.00038904,7]
[314044686,1707945086258,-841.02,0.00038904,7]
[314044687,1707945086268,-780.8,0.00038904,7]
[314044688,1707945086278,-662.19,0.00038904,7]
[314044689,1707945086287,-1486.64,0.00038904,7]
[314044690,1707945086297,-2858.66,0.00038904,7]
[314044691,1707945086307,-500.0,0.00038904,7]
[314044692,1707945086317,-2047.91,0.00038904,7]
[314044693,1707945086326,-590.33,0.00038904,7]
[314044694,1707945086335,-786.93,0.00038904,7]
[314044695,1707945086345,-577.68,0.00038904,7]
[314044696,1707945086354,-1000.0,0.00038904,120]
[314044697,1707945086363,-3628.12,0.00038904,7]
[314044698,1707945086374,-4757.12,0.00038904,7]
[314044699,1707945086383,-1991.03,0.00038904,7]
[314044700,1707945086393,-598.4,0.00038904,7]
[314044701,1707945086402,-612.33,0.00038904,2]
[314044702,1707945086412,-500.0,0.00038904,7]
[314044703,1707945086421,-500.0,0.00038904,7]
[314044704,1707945086430,-617.82,0.00038904,7]
[314044705,1707945086439,-502.43,0.00038904,7]
[314044706,1707945086449,-2139.36,0.00038904,7]
[314044707,1707945086458,-807.41,0.00038904,7]
[314044708,1707945086467,-685.44,0.00038904,7]
[314044709,1707945086476,-500.0,0.00038904,7]
[314044710,1707945086485,-730.2,0.00038904,7]
[314044711,1707945086494,-2211.07,0.00038904,7]
[314044712,1707945086503,-500.0,0.00038904,7]
[314044713,1707945086513,-500.0,0.00038904,7]
[314044714,1707945086522,-711.33,0.00038904,7]
[314044715,1707945086531,-743.99,0.00038904,7]
[314044716,1707945086541,-2294.91,0.00038904,7]
[314044717,1707945086550,-2043.37,0.00038904,7]
[314044718,1707945086559,-500.0,0.00038904,7]
[314044719,1707945086569,-594.55,0.00038904,7]
[314044720,1707945086579,-6637.56,0.00038904,7]
[314044721,1707945086588,-500.0,0.00038904,7]
[314044722,1707945086597,-500.0,0.00038904,7]
[314044723,1707945086606,-1343.45,0.00038904,7]
[314044724,1707945086615,-1215.55,0.00038904,7]
[314044725,1707945086626,-595.97,0.00038904,7]
[314044726,1707945086634,-500.0,0.00038904,7]
[314044727,1707945086643,-1831.02,0.00038904,7]
[314044728,1707945086652,-1575.34,0.00038904,7]
[314044729,1707945086661,-1240.3,0.00038904,7]
[314044730,1707945086671,-1949.84,0.00038904,7]
[314044731,1707945086679,-500.0,0.00038904,7]
[314044732,1707945086688,-500.0,0.00038904,7]
[314044733,1707945086698,-1376.91,0.00038904,7]
[314044734,1707945086707,-1838.93,0.00038904,7]
[314044735,1707945086717,-1020.07,0.00038904,7]
[314044736,1707945086726,-500.0,0.00038904,7]
[314044737,1707945086735,-500.0,0.00038904,7]
[314044738,1707945086744,-1264.88,0.00038904,7]
[314044739,1707945086753,-4521.24,0.00038904,7]
[314044740,1707945086762,-4808.1,0.00038904,7]
[314044741,1707945086771,-791.66,0.00038904,7]
[314044742,1707945086780,-500.0,0.00038904,7]
[314044743,1707945086789,-1751.89,0.00038904,7]
[314044744,1707945086798,-660.03,0.00038904,7]
[314044745,1707945086806,-500.0,0.00038904,7]
[314044746,1707945086817,-665.94,0.00038904,7]
[314044747,1707945086826,-1411.1,0.00038904,7]
[314044748,1707945086835,-720.52,0.00038904,7]
[314044749,1707945086844,-1028.68,0.00038904,7]
[314044750,1707945086853,-1101.95,0.00038904,7]
[314044751,1707945086863,-633.08,0.00038904,7]
[314044752,1707945086874,-679.4,0.00038904,7]
[314044753,1707945086883,-1588.43,0.00038904,7]
[314044754,1707945086893,-859.31,0.00038904,7]
[314044755,1707945086902,-570.05,0.00038904,7]
[314044756,1707945086911,-2455.03,0.00038904,7]
[314044757,1707945086920,-500.0,0.00038904,7]
[314044758,1707945086929,-6828.37,0.00038904,7]
[314044759,1707945086938,-7718.39,0.00038904,7]
[314044760,1707945086950,-500.0,0.00038904,7]
[314044761,1707945086960,-500.0,0.00038904,7]
[314044762,1707945086969,-500.0,0.00038904,7]
[314044763,1707945086978,-500.0,0.00038904,7]
[314044764,1707945086988,-730.4,0.00038904,7]
[314044765,1707945086997,-1547.02,0.00038904,7]
[314044766,1707945087006,-1211.6,0.00038904,7]
[314044767,1707945087016,-592.22,0.00038904,7]
[314044768,1707945087026,-1187.29,0.00038904,7]
[314044769,1707945087035,-500.0,0.00038904,7]
[314044770,1707945087044,-6862.69,0.00038904,7]
[314044771,1707945087054,-1752.35,0.00038904,7]
[314044772,1707945087063,-196.45566933,0.00038904,7]
[314044773,1707945087072,-565.71,0.00038904,7]
[314044774,1707945087082,-551.53,0.00038904,7]
[314044775,1707945087091,-500.0,0.00038904,7]
[314044776,1707945087101,-828.25,0.00038904,7]
[314044777,1707945087110,-500.0,0.00038904,7]
[314044778,1707945087119,-500.0,0.00038904,7]
[314044779,1707945087129,-865.42,0.00038904,7]
[314044780,1707945087138,-1003.79,0.00038904,7]
[314044781,1707945087148,-5366.99,0.00038904,7]
[314044782,1707945087157,-1623.54,0.00038904,7]
[314044783,1707945087166,-1200.22,0.00038904,7]
[314044784,1707945087176,-558.49,0.00038904,7]
[314044785,1707945087184,-500.0,0.00038904,7]
[314044786,1707945087194,-1014.56,0.00038904,7]
[314044787,1707945087203,-995.34,0.00038904,7]
[314044788,1707945087213,-746.35,0.00038904,7]
[314044789,1707945087222,-501.11,0.00038904,7]
[314044790,1707945087232,-1044.44,0.00038904,7]
[314044791,1707945087241,-1716.87,0.00038904,7]
[314044792,1707945087251,-1848.23,0.00038904,7]
[314044793,1707945087261,-1168.36,0.00038904,7]
[314044794,1707945087270,-587.47,0.00038904,7]
[314044795,1707945087279,-2233.44,0.00038904,7]
[314044796,1707945087288,-500.0,0.00038904,7]
[314044797,1707945087298,-983.47,0.00038904,7]
[314044798,1707945087306,-580.91,0.00038904,7]
[314044799,1707945087316,-826.29,0.00038904,7]
[314044800,1707945087325,-972.52,0.00038904,7]
[314044801,1707945087334,-898.19,0.00038904,7]
[314044802,1707945087343,-500.0,0.00038904,7]
[314044803,1707945087353,-500.0,0.00038904,7]
[314044804,1707945087362,-2032.9,0.00038904,7]
[314044805,1707945087372,-7693.98,0.00038904,7]
[314044806,1707945087382,-500.0,0.00038904,7]
[314044807,1707945087391,-500.0,0.00038904,7]
[314044808,1707945087401,-647.49,0.00038904,7]
[314044809,1707945087410,-551.52,0.00038904,7]
[314044810,1707945087420,-778.33,0.00038904,7]
[314044811,1707945087429,-500.0,0.00038904,7]
[314044812,1707945087438,-500.0,0.00038904,7]
[314044813,1707945087448,-3552.29,0.00038904,7]
[314044814,1707945087457,-630.27,0.00038904,7]
[314044815,1707945087466,-3310.79,0.00038904,7]
[314044816,1707945087475,-569.11,0.00038904,7]
[314044817,1707945087485,-500.0,0.00038904,7]
[314044818,1707945087494,-500.0,0.00038904,7]
[314044819,1707945087503,-1313.58,0.00038904,7]
[314044820,1707945087512,-500.0,0.00038904,7]
[314044821,1707945087521,-158.3,0.00038904,2]
[314044822,1707945087530,-5013.1,0.00038915,2]
[314044823,1707945087539,-151.02152,0.00038948,20]
[314044824,1707945087549,-151.021422,0.00038948,22]
[314044825,1707945087558,-151.02142,0.00038948,20]
[314044826,1707945087567,-524.26159614,0.00038969,11]
[314044827,1707945087576,-283.46555077,0.0003898,2]
[314044828,1707945087586,-200.0,0.00038987,4]
[314044829,1707945087594,-200.0,0.00038987,3]
[314044830,1707945087604,-500.0,0.00038992,2]
[314044831,1707945087613,-100000.0,0.00039,19]
[314044832,1707945087623,-863.41656844,0.00039,4]
[314044833,1707945087633,-155.0,0.00039,5]
[314044834,1707945087643,-1359.027365,0.00039,2]
[314044835,1707945087652,-1000.0,0.00039,8]
[314044836,1707945087662,-88955.8551,0.00039,2]
[314044837,1707945087671,-947.15,0.00039,7]
[314044838,1707945087680,-200.0,0.00039,13]
[314044839,1707945087690,-347.36,0.00039007,2]
[314044840,1707945087699,-151.021521,0.00039048,21]
[314044841,1707945087708,-150.0,0.00039052,2]
[314044842,1707945087717,-1845.93,0.00039085,5]
[314044843,1707945087726,-2500.0,0.00039111,30]
[314044844,1707945087736,-152.0,0.00039118,3]
[314044845,1707945087745,-150.0,0.00039134,2]
[314044846,1707945087754,-500.0,0.00039139,2]
[314044847,1707945087763,-4995.69,0.00039146,5]